[Event "Danish Skakligaen 2024-25"]
[Site "Denmark"]
[Date "2024.11.03"]
[Round "2.4"]
[White "Jacobsen, Mikkel Manosri"]
[Black "Baekgaard, Martin"]
[Result "1-0"]
[ECO "A13"]
[WhiteElo "2289"]
[BlackElo "2263"]
[Annotator "RC"]
[PlyCount "67"]
[EventDate "2024.11.02"]
[EventType "team-tourn"]
[EventCountry "DEN"]
[SourceTitle "playchess.com"]
[Source "ChessBase"]
[SourceQuality "1"]
[TimeControl "40/5400+30:1800+30"]

1. c4 {[%emt 0:00:03]} e6 {[%emt 0:00:20]} 2. g3 {[%emt 0:00:06]} d5 {[%emt 0:00:20]} 3. Bg2 {[%emt 0:00:05]} Nf6 {[%emt 0:00:11]} 4. Nf3 {[%emt 0:00:06]} dxc4 {[%emt 0:00:22]} 5. Qa4+ {[%emt 0:01:28]} Nbd7 {[%emt 0:00:24]} 6. Qxc4 {[%emt 0:00:08]} a6 {[%emt 0:00:27]} 7. Qc2 {[%emt 0:00:05]} c5 {[%emt 0:00:37]} 8. Nc3 {[%emt 0:00:06]} Qc7 {[%emt 0:02:03]} 9. d4 {[%emt 0:00:08]} b5 {[%emt 0:00:48]} 10. Bf4 {[%emt 0:00:07]} Qb6 {[%emt 0:00:05]} 11. Ne5 {[%emt 0:00:09]} Bb7 {[%emt 0:00:21]} 12. Nxd7 {[%emt 0:00:06]} Nxd7 {[%emt 0:00:09]} 13. d5 {[%emt 0:00:12]} Nf6 {[%emt 0:16:02]} 14. e4 {[%emt 0:00:18]} exd5 {[%emt 0:20:56]} 15. exd5 {[%emt 0:03:02]} Bd6 {[%emt 0:00:08]} 16. Bg5 {[%emt 0:07:32]} Be5 {[%emt 0:02:54]} 17. O-O {[%emt 0:05:35]} O-O {[%emt 0:01:26]} 18. Rad1 {[%emt 0:06:43]} h6 {[%emt 0:11:53]} 19. Be3 {[%emt 0:04:47]} Rac8 {[%emt 0:01:17]} 20. Rfe1 {[%emt 0:27:14]} Bd4 {[%emt 0:13:48]} 21. Qd2 {[%emt 0:00:19]} b4 {[%emt 0:00:42]} 22. Bxd4 {[%emt 0:02:40]} cxd4 {[%emt 0:00:33]} 23. Ne4 {[%emt 0:00:49]} Nxe4 {[%emt 0:10:17]} 24. Bxe4 {[%emt 0:00:15]} Rfe8 {[%emt 0:00:04]} 25. Bf3 {[%emt 0:07:00]} Rxe1+ {[%emt 0:02:38]} 26. Qxe1 {[%emt 0:00:02]} Qf6 {[%emt 0:03:11]} 27. Qe4 {[%emt 0:07:04]} d3 {[%emt 0:01:58]} 28. Qxd3 {[%emt 0:05:18]} a5 {[%emt 0:05:44]} 29. Bg4 {[%emt 0:10:22]} Rd8 {[%emt 0:04:39]} 30. Qb5 {[%emt 0:00:10]} Qa6 {[%emt 0:00:04]} 31. Qxa6 {[%emt 0:09:48]} Bxa6 {[%emt 0:00:05]} 32. f4 {[%emt 0:00:07]} Bc4 {[%emt 0:01:18]} 33. b3 {[%emt 0:00:05]} Rxd5 {[%emt 0:00:40]} 34. bxc4 {[%emt 0:00:07]} 1-0

[Event "Danish Skakligaen 2024-25"]
[Site "Denmark"]
[Date "2024.11.03"]
[Round "2.4"]
[White "Jorgensen, Brian Jorgen"]
[Black "Thorsen, Adrian Stenstrop"]
[Result "1/2-1/2"]
[ECO "A27"]
[WhiteElo "2179"]
[BlackElo "2206"]
[Annotator "RC"]
[PlyCount "105"]
[EventDate "2024.11.02"]
[EventType "team-tourn"]
[EventCountry "DEN"]
[SourceTitle "playchess.com"]
[Source "ChessBase"]
[SourceQuality "1"]
[TimeControl "40/5400+30:1800+30"]

1. c4 {[%emt 0:00:03]} e5 {[%emt 0:00:07]} 2. Nc3 {[%emt 0:00:06]} Nc6 {[%emt 0:00:07]} 3. Nf3 {[%emt 0:00:22]} f5 {[%emt 0:00:53]} 4. d4 {[%emt 0:01:08]} e4 {[%emt 0:00:08]} 5. Ng5 {[%emt 0:01:15]} h6 {[%emt 0:00:54]} 6. Nh3 {[%emt 0:00:07]} g5 {[%emt 0:00:08]} 7. f3 {[%emt 0:01:51]} Bb4 {[%emt 0:17:42]} 8. fxe4 {[%emt 0:04:32]} fxe4 {[%emt 0:00:13]} 9. Nf2 {[%emt 0:01:18]} Nf6 {[%emt 0:00:22]} 10. e3 {[%emt 0:00:47]} O-O {[%emt 0:04:54]} 11. Bd2 {[%emt 0:09:46]} Qe7 {[%emt 0:17:28]} 12. Be2 {[%emt 0:09:10]} Nxd4 {[%emt 0:12:49]} 13. exd4 {[%emt 0:00:29]} e3 {[%emt 0:00:08]} 14. O-O {[%emt 0:01:21]} exd2 {[%emt 0:02:18]} 15. Qxd2 d5 {[%emt 0:00:35]} 16. cxd5 {[%emt 0:01:22]} Bf5 {[%emt 0:04:29]} 17. Bc4 {[%emt 0:02:21]} Kg7 {[%emt 0:01:54]} 18. Rae1 {[%emt 0:25:58]} Qd6 {[%emt 0:03:23]} 19. Bd3 {[%emt 0:18:46]} Nxd5 {[%emt 0:04:06]} 20. Bxf5 {[%emt 0:02:21]} Rxf5 {[%emt 0:00:17]} 21. Nfe4 {[%emt 0:00:27]} Qg6 {[%emt 0:05:56]} 22. Rxf5 {[%emt 0:08:45]} Qxf5 {[%emt 0:00:08]} 23. Ng3 {[%emt 0:00:05]} Qf7 {[%emt 0:00:33]} 24. Rf1 {[%emt 0:00:28]} Nf4 {[%emt 0:00:19]} 25. Qc2 {[%emt 0:00:21]} Rf8 {[%emt 0:01:27]} 26. Nce4 {[%emt 0:00:47]} Ba5 {[%emt 0:01:50]} 27. Kh1 {[%emt 0:02:00]} Bb6 {[%emt 0:04:06]} 28. Nc5 {[%emt 0:03:22]} h5 {[%emt 0:05:56]} 29. h4 {[%emt 0:02:09]} Qd5 {[%emt 0:05:18]} 30. hxg5 {[%emt 0:00:30]} h4 {[%emt 0:03:51]} 31. Rxf4 {[%emt 0:00:20]} hxg3 {[%emt 0:00:23]} 32. Rxf8 {[%emt 0:00:20]} Kxf8 {[%emt 0:00:00]} 33. Qe4 {[%emt 0:02:10]} Qxe4 {[%emt 0:00:26]} 34. Nxe4 {[%emt 0:00:06]} Bxd4 {[%emt 0:00:07]} 35. Nxg3 {[%emt 0:00:52]} Bxb2 {[%emt 0:00:09]} 36. Ne4 {[%emt 0:00:29]} Kf7 {[%emt 0:01:38]} 37. g4 {[%emt 0:00:06]} b6 {[%emt 0:01:17]} 38. Kg2 {[%emt 0:00:13]} Kg6 {[%emt 0:01:41]} 39. Kf3 {[%emt 0:00:27]} Bc1 {[%emt 0:00:15]} 40. Nf2 {[%emt 0:02:36]} Bxg5 {[%emt 0:00:31]} 41. Ke4 {[%emt 0:30:18]} Bh4 {[%emt 0:31:27]} 42. Nd3 {[%emt 0:00:00]} Kg5 {[%emt 0:00:00]} 43. Nb4 {[%emt 0:00:00]} Kxg4 {[%emt 0:00:00]} 44. Na6 {[%emt 0:00:00]} Bg3 {[%emt 0:00:00]} 45. a4 {[%emt 0:00:00]} c5 {[%emt 0:00:00]} 46. a5 {[%emt 0:00:00]} Bf4 {[%emt 0:00:00]} 47. Kd5 {[%emt 0:00:00]} Be3 {[%emt 0:00:00]} 48. axb6 {[%emt 0:00:00]} axb6 {[%emt 0:00:00]} 49. Kc4 {[%emt 0:00:00]} Kf4 {[%emt 0:00:00]} 50. Nb8 {[%emt 0:00:00]} Bd2 {[%emt 0:00:00]} 51. Nd7 {[%emt 0:00:00]} Ba5 {[%emt 0:00:00]} 52. Nxc5 {[%emt 0:00:00]} bxc5 {[%emt 0:00:00]} 53. Kxc5 {[%emt 0:00:00]} 1/2-1/2

[Event "Danish Skakligaen 2024-25"]
[Site "Denmark"]
[Date "2024.11.03"]
[Round "2.5"]
[White "Hoi, Carsten"]
[Black "Pedersen, Nicolai Vesterbaek"]
[Result "1/2-1/2"]
[ECO "D02"]
[WhiteElo "2301"]
[BlackElo "2344"]
[Annotator "RC"]
[PlyCount "31"]
[EventDate "2024.11.02"]
[EventType "team-tourn"]
[EventCountry "DEN"]
[SourceTitle "playchess.com"]
[Source "ChessBase"]
[SourceQuality "1"]
[TimeControl "40/5400+30:1800+30"]

1. d4 {[%emt 0:00:31]} d5 {[%emt 0:01:01]} 2. Nf3 {[%emt 0:00:55]} c5 {[%emt 0:00:13]} 3. c4 {[%emt 0:00:47]} cxd4 {[%emt 0:00:16]} 4. cxd5 {[%emt 0:01:26]} Nf6 {[%emt 0:00:23]} 5. Qxd4 {[%emt 0:09:53]} Qxd5 {[%emt 0:00:13]} 6. Nc3 {[%emt 0:00:30]} Qxd4 {[%emt 0:00:09]} 7. Nxd4 {[%emt 0:00:10]} a6 {[%emt 0:00:06]} 8. g3 {[%emt 0:01:46]} e5 {[%emt 0:00:21]} 9. Nb3 {[%emt 0:05:03]} a5 {[%emt 0:04:09]} 10. Bg2 {[%emt 0:03:06]} Nc6 {[%emt 0:11:56]} 11. O-O {[%emt 0:04:22]} Bb4 {[%emt 0:15:16]} 12. Nb5 {[%emt 0:06:47]} O-O {[%emt 0:04:34]} 13. Nc7 {[%emt 0:07:12]} Rb8 {[%emt 0:00:32]} 14. a3 {[%emt 0:07:26]} Be7 {[%emt 0:03:00]} 15. Be3 {[%emt 0:04:38]} a4 {[%emt 0:02:06]} 16. Nd2 {[%emt 0:05:46]} 1/2-1/2

[Event "Danish Skakligaen 2024-25"]
[Site "Denmark"]
[Date "2024.11.03"]
[Round "2.5"]
[White "Jorgensen, Brian"]
[Black "Aagaard, Jacob"]
[Result "0-1"]
[ECO "E73"]
[WhiteElo "2258"]
[BlackElo "2426"]
[Annotator "RC"]
[PlyCount "134"]
[EventDate "2024.11.02"]
[EventType "team-tourn"]
[EventCountry "DEN"]
[SourceTitle "playchess.com"]
[Source "ChessBase"]
[SourceQuality "1"]
[TimeControl "40/5400+30:1800+30"]

1. d4 {[%emt 0:00:03]} Nf6 {[%emt 0:00:06]} 2. c4 {[%emt 0:00:09]} g6 {[%emt 0:00:51]} 3. Nc3 {[%emt 0:00:08]} Bg7 {[%emt 0:00:07]} 4. e4 {[%emt 0:00:41]} d6 {[%emt 0:00:07]} 5. Be2 {[%emt 0:02:23]} e5 {[%emt 0:00:54]} 6. dxe5 {[%emt 0:01:17]} dxe5 {[%emt 0:00:02]} 7. Qxd8+ {[%emt 0:00:27]} Kxd8 {[%emt 0:00:04]} 8. Bg5 {[%emt 0:01:29]} h6 {[%emt 0:03:05]} 9. O-O-O+ {[%emt 0:04:10]} Nbd7 {[%emt 0:01:18]} 10. Bh4 {[%emt 0:00:21]} c6 {[%emt 0:03:40]} 11. f4 {[%emt 0:10:36]} Ke8 {[%emt 0:02:05]} 12. fxe5 {[%emt 0:15:38]} Nxe5 {[%emt 0:00:47]} 13. Nf3 {[%emt 0:00:31]} Nfd7 {[%emt 0:03:25]} 14. Nxe5 {[%emt 0:04:15]} Bxe5 {[%emt 0:02:27]} 15. Kc2 {[%emt 0:02:05]} Nf6 {[%emt 0:08:13]} 16. Rhf1 {[%emt 0:05:55]} g5 {[%emt 0:06:19]} 17. Bf2 {[%emt 0:00:41]} Ng4 {[%emt 0:00:57]} 18. Bd4 {[%emt 0:15:46]} Bxd4 {[%emt 0:00:13]} 19. Bxg4 {[%emt 0:00:13]} Be5 {[%emt 0:00:20]} 20. Bxc8 {[%emt 0:01:44]} Rxc8 {[%emt 0:00:10]} 21. h3 {[%emt 0:02:43]} Ke7 {[%emt 0:01:25]} 22. Ne2 {[%emt 0:00:19]} Rhd8 {[%emt 0:07:40]} 23. b3 {[%emt 0:02:41]} b5 {[%emt 0:00:42]} 24. Rxd8 {[%emt 0:04:25]} Rxd8 {[%emt 0:00:39]} 25. Rf3 {[%emt 0:00:10]} Rb8 {[%emt 0:05:05]} 26. cxb5 {[%emt 0:07:20]} cxb5 {[%emt 0:02:36]} 27. Nc3 {[%emt 0:02:01]} Ke6 {[%emt 0:03:17]} 28. Nd5 {[%emt 0:03:07]} h5 {[%emt 0:04:25]} 29. Kd3 {[%emt 0:01:09]} Rg8 {[%emt 0:02:54]} 30. Rf2 {[%emt 0:06:48]} Rc8 {[%emt 0:03:26]} 31. Rc2 {[%emt 0:00:38]} Rxc2 {[%emt 0:00:20]} 32. Kxc2 {[%emt 0:00:09]} f5 {[%emt 0:00:17]} 33. Kd3 {[%emt 0:01:06]} f4 {[%emt 0:00:50]} 34. Ke2 {[%emt 0:03:16]} Bd6 {[%emt 0:02:41]} 35. Nc3 {[%emt 0:01:18]} b4 {[%emt 0:04:53]} 36. Nb1 {[%emt 0:01:19]} g4 {[%emt 0:10:17]} 37. hxg4 {[%emt 0:00:05]} hxg4 {[%emt 0:00:04]} 38. Nd2 {[%emt 0:00:09]} Bc5 {[%emt 0:01:19]} 39. Nc4 {[%emt 0:00:24]} Kf6 {[%emt 0:06:07]} 40. Nb2 {[%emt 0:01:33]} Ke5 {[%emt 0:05:21]} 41. Nd3+ {[%emt 0:02:33]} Kd4 {[%emt 0:00:16]} 42. Nxf4 {[%emt 0:00:18]} Kxe4 {[%emt 0:00:37]} 43. Nd3 {[%emt 0:00:36]} Bd6 {[%emt 0:01:33]} 44. Nf2+ {[%emt 0:05:38]} Kf4 {[%emt 0:04:02]} 45. Nd3+ {[%emt 0:00:18]} Ke4 {[%emt 0:00:11]} 46. Nf2+ {[%emt 0:00:06]} Kf4 {[%emt 0:00:09]} 47. Nd3+ {[%emt 0:00:07]} Kg3 {[%emt 0:01:51]} 48. Kf1 {[%emt 0:00:17]} a5 {[%emt 0:00:12]} 49. Nc1 {[%emt 0:02:35]} Kf4 {[%emt 0:00:44]} 50. Ke2 {[%emt 0:01:03]} Ke4 {[%emt 0:00:40]} 51. Nd3 {[%emt 0:00:31]} Kd4 {[%emt 0:01:46]} 52. Nf2 {[%emt 0:03:56]} g3 {[%emt 0:02:27]} 53. Nd1 {[%emt 0:06:21]} Bf4 {[%emt 0:03:47]} 54. Kf3 {[%emt 0:00:19]} Bc7 {[%emt 0:00:02]} 55. Ke2 {[%emt 0:00:15]} Bd8 {[%emt 0:00:25]} 56. Kd2 {[%emt 0:01:38]} Bg5+ {[%emt 0:00:06]} 57. Ke2 {[%emt 0:00:06]} Bc1 {[%emt 0:01:29]} 58. Kf3 {[%emt 0:01:20]} Kd3 {[%emt 0:01:15]} 59. Kxg3 {[%emt 0:00:06]} Kc2 {[%emt 0:00:41]} 60. Nf2 {[%emt 0:00:27]} Kb1 {[%emt 0:00:10]} 61. Nd3 {[%emt 0:01:02]} Bg5 {[%emt 0:05:33]} 62. Ne5 {[%emt 0:06:09]} Kxa2 {[%emt 0:03:37]} 63. Nc6 {[%emt 0:00:14]} Kxb3 {[%emt 0:00:31]} 64. Nxa5+ {[%emt 0:00:09]} Kc3 {[%emt 0:00:20]} 65. Kf3 {[%emt 0:01:44]} Bd8 {[%emt 0:00:44]} 66. Nb7 {[%emt 0:00:27]} Bb6 {[%emt 0:01:24]} 67. Nd6 {[%emt 0:01:00]} Kd3 {[%emt 0:02:37]} 0-1

[Event "Danish Skakligaen 2024-25"]
[Site "Denmark"]
[Date "2024.11.03"]
[Round "2.5"]
[White "Ochsner, Thomas"]
[Black "Rostgaard, Tobias Valentin"]
[Result "0-1"]
[ECO "C54"]
[WhiteElo "2257"]
[BlackElo "2329"]
[Annotator "RC"]
[PlyCount "82"]
[EventDate "2024.11.02"]
[EventType "team-tourn"]
[EventCountry "DEN"]
[SourceTitle "playchess.com"]
[Source "ChessBase"]
[SourceQuality "1"]
[TimeControl "40/5400+30:1800+30"]

1. e4 {[%emt 0:00:03]} e5 {[%emt 0:00:08]} 2. Nf3 {[%emt 0:00:09]} Nc6 {[%emt 0:00:35]} 3. Bc4 {[%emt 0:00:17]} Bc5 {[%emt 0:00:23]} 4. c3 {[%emt 0:00:29]} Nf6 {[%emt 0:00:19]} 5. d3 {[%emt 0:00:10]} O-O {[%emt 0:00:13]} 6. O-O {[%emt 0:00:56]} d5 {[%emt 0:01:23]} 7. exd5 {[%emt 0:01:13]} Nxd5 {[%emt 0:00:13]} 8. Re1 {[%emt 0:01:04]} Bg4 {[%emt 0:01:05]} 9. Nbd2 {[%emt 0:03:51]} Nb6 {[%emt 0:01:28]} 10. Ne4 {[%emt 0:04:13]} Nxc4 {[%emt 0:02:33]} 11. Nxc5 {[%emt 0:02:56]} Nd6 {[%emt 0:00:10]} 12. h3 {[%emt 0:03:18]} Bh5 {[%emt 0:00:41]} 13. g4 {[%emt 0:08:54]} Bg6 {[%emt 0:00:07]} 14. Nxe5 {[%emt 0:00:34]} Nxe5 {[%emt 0:00:07]} 15. Rxe5 {[%emt 0:00:06]} b6 {[%emt 0:00:11]} 16. Nb3 {[%emt 0:05:28]} Nc4 {[%emt 0:02:23]} 17. Re1 {[%emt 0:00:17]} Qxd3 {[%emt 0:06:23]} 18. Qxd3 {[%emt 0:13:38]} Bxd3 {[%emt 0:00:09]} 19. Bf4 {[%emt 0:00:17]} Nxb2 {[%emt 0:00:43]} 20. Bxc7 {[%emt 0:00:37]} Rfe8 {[%emt 0:03:04]} 21. Be5 {[%emt 0:05:23]} Bc4 {[%emt 0:09:04]} 22. Bd4 {[%emt 0:00:41]} f6 {[%emt 0:04:15]} 23. Kg2 {[%emt 0:05:51]} Kf7 {[%emt 0:08:00]} 24. Kg3 {[%emt 0:00:24]} h5 {[%emt 0:02:53]} 25. Rxe8 {[%emt 0:06:09]} Rxe8 {[%emt 0:00:08]} 26. Nd2 {[%emt 0:00:07]} Bd5 {[%emt 0:13:00]} 27. gxh5 {[%emt 0:06:09]} Rh8 {[%emt 0:01:24]} 28. Rb1 {[%emt 0:07:26]} Nd3 {[%emt 0:00:49]} 29. c4 {[%emt 0:00:31]} Bc6 {[%emt 0:00:53]} 30. Rb3 {[%emt 0:06:07]} Nc1 {[%emt 0:01:01]} 31. Re3 {[%emt 0:01:33]} Rxh5 {[%emt 0:00:56]} 32. Nb3 {[%emt 0:02:33]} Rg5+ {[%emt 0:00:24]} 33. Kh4 {[%emt 0:02:01]} Nxa2 {[%emt 0:03:34]} 34. c5 {[%emt 0:01:55]} Nb4 {[%emt 0:03:11]} 35. cxb6 {[%emt 0:02:16]} axb6 {[%emt 0:00:17]} 36. Rc3 {[%emt 0:03:47]} Nd5 {[%emt 0:01:31]} 37. Rg3 {[%emt 0:03:16]} Rf5 {[%emt 0:00:09]} 38. Rg4 {[%emt 0:01:15]} Rf3 {[%emt 0:00:27]} 39. Rg3 {[%emt 0:00:28]} g5+ {[%emt 0:00:19]} 40. Kh5 {[%emt 0:00:11]} Ne7 {[%emt 0:03:29]} 41. Kh6 {[%emt 0:04:04]} Nf5+ {[%emt 0:00:40]} 0-1

[Event "Danish Skakligaen 2024-25"]
[Site "Denmark"]
[Date "2024.11.03"]
[Round "2.5"]
[White "Easwaralingam, Adesh"]
[Black "Laursen, Niels Norskov"]
[Result "1/2-1/2"]
[ECO "B08"]
[WhiteElo "2202"]
[BlackElo "2183"]
[Annotator "RC"]
[PlyCount "29"]
[EventDate "2024.11.02"]
[EventType "team-tourn"]
[EventCountry "DEN"]
[SourceTitle "playchess.com"]
[Source "ChessBase"]
[SourceQuality "1"]
[TimeControl "40/5400+30:1800+30"]

1. e4 {[%emt 0:00:07]} d6 {[%emt 0:00:13]} 2. d4 {[%emt 0:00:33]} Nf6 {[%emt 0:00:08]} 3. Nc3 {[%emt 0:00:15]} g6 {[%emt 0:00:15]} 4. Nf3 {[%emt 0:00:39]} Bg7 {[%emt 0:00:19]} 5. Be2 {[%emt 0:00:07]} O-O {[%emt 0:00:20]} 6. O-O {[%emt 0:00:07]} a6 {[%emt 0:00:29]} 7. a4 {[%emt 0:01:45]} Nc6 {[%emt 0:00:46]} 8. h3 {[%emt 0:01:57]} e5 {[%emt 0:01:35]} 9. dxe5 {[%emt 0:03:46]} dxe5 {[%emt 0:00:14]} 10. Be3 {[%emt 0:11:32]} Be6 {[%emt 0:02:34]} 11. Ng5 {[%emt 0:15:30]} Qe7 {[%emt 0:04:22]} 12. Nxe6 {[%emt 0:01:22]} Qxe6 {[%emt 0:00:15]} 13. Nd5 {[%emt 0:03:16]} Qd6 {[%emt 0:18:52]} 14. Nxf6+ {[%emt 0:01:02]} Qxf6 {[%emt 0:00:14]} 15. c3 {[%emt 0:01:07]} 1/2-1/2

[Event "Danish Skakligaen 2024-25"]
[Site "Denmark"]
[Date "2024.11.03"]
[Round "2.5"]
[White "Christensen, Benjamin"]
[Black "Hove, Esben Kjems"]
[Result "0-1"]
[ECO "B12"]
[WhiteElo "2057"]
[BlackElo "2283"]
[Annotator "RC"]
[PlyCount "84"]
[EventDate "2024.11.02"]
[EventType "team-tourn"]
[EventCountry "DEN"]
[SourceTitle "playchess.com"]
[Source "ChessBase"]
[SourceQuality "1"]
[TimeControl "40/5400+30:1800+30"]

1. e4 {[%emt 0:00:04]} c6 {[%emt 0:00:07]} 2. d4 {[%emt 0:00:08]} d5 {[%emt 0:00:06]} 3. e5 {[%emt 0:00:07]} Bf5 {[%emt 0:00:05]} 4. Nf3 {[%emt 0:00:11]} e6 {[%emt 0:00:06]} 5. Be2 {[%emt 0:00:19]} Nd7 {[%emt 0:00:07]} 6. O-O {[%emt 0:00:21]} a5 {[%emt 0:00:48]} 7. a4 {[%emt 0:02:50]} f6 {[%emt 0:01:56]} 8. c4 {[%emt 0:08:15]} fxe5 {[%emt 0:05:31]} 9. dxe5 {[%emt 0:01:09]} Bc5 {[%emt 0:05:43]} 10. Nc3 {[%emt 0:09:58]} Ne7 {[%emt 0:03:18]} 11. cxd5 {[%emt 0:08:44]} Nxd5 {[%emt 0:02:12]} 12. Nxd5 {[%emt 0:00:30]} cxd5 {[%emt 0:00:36]} 13. Bg5 {[%emt 0:02:19]} Be7 {[%emt 0:08:27]} 14. Bxe7 {[%emt 0:01:05]} Qxe7 {[%emt 0:00:09]} 15. Bb5 {[%emt 0:00:22]} Bg4 {[%emt 0:02:35]} 16. h3 {[%emt 0:03:03]} Bxf3 {[%emt 0:01:49]} 17. Qxf3 {[%emt 0:00:07]} Rf8 {[%emt 0:00:13]} 18. Qe3 {[%emt 0:01:21]} Kf7 {[%emt 0:03:01]} 19. Rac1 {[%emt 0:01:12]} Rfc8 {[%emt 0:03:40]} 20. Rc3 {[%emt 0:11:02]} Nc5 {[%emt 0:02:55]} 21. Rfc1 {[%emt 0:01:37]} b6 {[%emt 0:00:13]} 22. Qd4 {[%emt 0:00:31]} Kg8 {[%emt 0:01:37]} 23. f4 {[%emt 0:06:34]} Rf8 {[%emt 0:03:12]} 24. Kh2 {[%emt 0:02:19]} Rac8 {[%emt 0:01:26]} 25. R1c2 {[%emt 0:02:58]} Qh4 {[%emt 0:03:55]} 26. g3 {[%emt 0:01:09]} Qe7 {[%emt 0:00:19]} 27. Bd3 {[%emt 0:06:11]} Qd7 {[%emt 0:05:46]} 28. Bb5 {[%emt 0:02:05]} Qb7 {[%emt 0:01:55]} 29. Bd3 {[%emt 0:06:12]} Rc7 {[%emt 0:05:44]} 30. g4 {[%emt 0:05:23]} Rcf7 {[%emt 0:15:11]} 31. Rf2 {[%emt 0:03:10]} Qd7 {[%emt 0:02:22]} 32. Bc2 {[%emt 0:01:29]} g6 {[%emt 0:12:05]} 33. Rcf3 {[%emt 0:01:38]} Qc7 {[%emt 0:02:22]} 34. Kh1 {[%emt 0:04:12]} Nd7 {[%emt 0:01:49]} 35. Kg2 {[%emt 0:00:09]} Qc5 {[%emt 0:01:37]} 36. Qd2 {[%emt 0:02:32]} Kh8 {[%emt 0:02:01]} 37. Kg3 {[%emt 0:02:35]} g5 {[%emt 0:02:03]} 38. fxg5 {[%emt 0:04:22]} Rxf3+ {[%emt 0:00:25]} 39. Rxf3 {[%emt 0:00:04]} Qg1+ {[%emt 0:00:53]} 40. Qg2 {[%emt 0:00:04]} Rxf3+ {[%emt 0:00:33]} 41. Kxf3 {[%emt 0:30:04]} Nxe5+ {[%emt 0:30:16]} 42. Kg3 {[%emt 0:00:09]} Qe3+ {[%emt 0:00:21]} 0-1

[Event "Danish Skakligaen 2024-25"]
[Site "Denmark"]
[Date "2024.11.03"]
[Round "2.6"]
[White "Percivaldi, Martin"]
[Black "Pedersen, Henrik Dahl"]
[Result "1-0"]
[ECO "D11"]
[WhiteElo "2387"]
[BlackElo "2251"]
[Annotator "RC"]
[PlyCount "63"]
[EventDate "2024.11.02"]
[EventType "team-tourn"]
[EventCountry "DEN"]
[SourceTitle "playchess.com"]
[Source "ChessBase"]
[SourceQuality "1"]
[TimeControl "40/5400+30:1800+30"]

1. d4 {[%emt 0:00:04]} d5 {[%emt 0:00:22]} 2. c4 {[%emt 0:00:07]} c6 {[%emt 0:00:45]} 3. Nf3 {[%emt 0:00:08]} Nf6 {[%emt 0:00:44]} 4. e3 {[%emt 0:01:31]} e6 {[%emt 0:01:56]} 5. b3 {[%emt 0:00:11]} Nbd7 {[%emt 0:01:12]} 6. Bd3 {[%emt 0:00:10]} Bb4+ {[%emt 0:04:49]} 7. Nbd2 {[%emt 0:00:22]} Qe7 {[%emt 0:01:36]} 8. Bb2 {[%emt 0:15:31]} O-O {[%emt 0:04:07]} 9. a3 {[%emt 0:02:43]} Ba5 {[%emt 0:04:48]} 10. O-O {[%emt 0:01:19]} c5 {[%emt 0:12:42]} 11. dxc5 {[%emt 0:15:17]} Nxc5 {[%emt 0:00:53]} 12. Bc2 {[%emt 0:00:06]} Nce4 {[%emt 0:04:42]} 13. Nxe4 {[%emt 0:05:38]} dxe4 {[%emt 0:00:03]} 14. Bxf6 {[%emt 0:00:12]} gxf6 {[%emt 0:02:05]} 15. Bxe4 {[%emt 0:00:54]} f5 {[%emt 0:00:04]} 16. Bd3 {[%emt 0:05:40]} Bc3 {[%emt 0:01:03]} 17. Ra2 {[%emt 0:03:09]} Rd8 {[%emt 0:03:50]} 18. Qe2 {[%emt 0:05:30]} e5 {[%emt 0:07:07]} 19. e4 {[%emt 0:04:11]} f4 {[%emt 0:03:00]} 20. Rc2 {[%emt 0:09:13]} Bd4 {[%emt 0:02:38]} 21. Nxd4 {[%emt 0:03:15]} Rxd4 {[%emt 0:00:02]} 22. c5 {[%emt 0:00:10]} Be6 {[%emt 0:00:07]} 23. Bc4 {[%emt 0:00:26]} Rad8 {[%emt 0:00:24]} 24. Bxe6 {[%emt 0:02:26]} Qxe6 {[%emt 0:00:02]} 25. b4 {[%emt 0:00:11]} Rd3 {[%emt 0:01:37]} 26. b5 {[%emt 0:04:59]} Rxa3 {[%emt 0:13:29]} 27. c6 {[%emt 0:00:28]} bxc6 {[%emt 0:01:30]} 28. bxc6 {[%emt 0:00:28]} Rc8 {[%emt 0:00:40]} 29. c7 {[%emt 0:01:16]} Rb3 {[%emt 0:03:53]} 30. Qh5 {[%emt 0:02:43]} Rb6 {[%emt 0:13:48]} 31. Rd1 {[%emt 0:05:12]} h6 {[%emt 0:01:35]} 32. h3 1-0

[Event "Danish Skakligaen 2024-25"]
[Site "Denmark"]
[Date "2024.11.03"]
[Round "2.6"]
[White "Boe, Mads"]
[Black "Andreasen, Joan Hendrik"]
[Result "1/2-1/2"]
[ECO "C02"]
[WhiteElo "2271"]
[BlackElo "2189"]
[Annotator "RC"]
[PlyCount "54"]
[EventDate "2024.11.02"]
[EventType "team-tourn"]
[EventCountry "DEN"]
[SourceTitle "playchess.com"]
[Source "ChessBase"]
[SourceQuality "1"]
[TimeControl "40/5400+30:1800+30"]

1. e4 {[%emt 0:01:30]} e6 {[%emt 0:00:29]} 2. d4 {[%emt 0:00:08]} d5 {[%emt 0:00:05]} 3. e5 {[%emt 0:00:03]} c5 {[%emt 0:00:17]} 4. c3 {[%emt 0:00:09]} Nc6 {[%emt 0:00:04]} 5. Be3 {[%emt 0:00:12]} Nge7 {[%emt 0:05:36]} 6. Bd3 {[%emt 0:04:24]} Nf5 {[%emt 0:05:02]} 7. Nf3 {[%emt 0:01:44]} Nxe3 {[%emt 0:01:39]} 8. fxe3 {[%emt 0:00:07]} Be7 {[%emt 0:01:57]} 9. O-O {[%emt 0:08:41]} Bd7 {[%emt 0:04:45]} 10. a3 {[%emt 0:07:25]} Qc7 {[%emt 0:11:59]} 11. Nbd2 {[%emt 0:04:57]} Rd8 {[%emt 0:12:48]} 12. b4 {[%emt 0:13:25]} b6 {[%emt 0:03:37]} 13. Rc1 {[%emt 0:01:43]} c4 {[%emt 0:03:10]} 14. Bc2 {[%emt 0:01:10]} b5 {[%emt 0:05:10]} 15. e4 {[%emt 0:03:18]} O-O {[%emt 0:01:05]} 16. Rf2 {[%emt 0:14:20]} a5 {[%emt 0:05:10]} 17. Nf1 {[%emt 0:03:06]} axb4 {[%emt 0:02:27]} 18. axb4 {[%emt 0:00:11]} dxe4 {[%emt 0:05:59]} 19. Bxe4 {[%emt 0:02:03]} f6 {[%emt 0:02:03]} 20. exf6 {[%emt 0:00:49]} Bxf6 {[%emt 0:00:17]} 21. Qc2 {[%emt 0:03:01]} g6 {[%emt 0:00:53]} 22. Ne3 {[%emt 0:01:02]} Bg7 {[%emt 0:03:49]} 23. Rcf1 {[%emt 0:00:35]} Qf4 {[%emt 0:07:35]} 24. Re2 {[%emt 0:07:03]} Qd6 {[%emt 0:01:32]} 25. Ref2 {[%emt 0:08:16]} Qf4 {[%emt 0:00:11]} 26. Re2 {[%emt 0:00:24]} Qd6 {[%emt 0:00:07]} 27. Ref2 {[%emt 0:00:29]} Qf4 {[%emt 0:00:21]} 1/2-1/2